[Event "*** SCC Grand Prix: Titled Tuesday Blitz"]
[Site "Chess.com"]
[Date "2020.06.02"]
[Round "3"]
[White "hectorfiori"]
[Black "Efremov_Vlad"]
[Result "1-0"]
[WhiteElo "2385"]
[BlackElo "2156"]
[TimeControl "180+1"]
[EndTime "10:29:36 PDT"]
[Termination "hectorfiori won on time"]

1. e4 {[%clk 0:03:00.9]} 1... c5 {[%clk 0:02:59.5]} 2. Nf3 {[%clk 0:03:00.2]}
2... e6 {[%clk 0:02:59.8]} 3. d4 {[%clk 0:02:59.6]} 3... cxd4 {[%clk 0:03:00.5]}
4. Nxd4 {[%clk 0:02:59.9]} 4... Nc6 {[%clk 0:03:00.2]} 5. Nc3 {[%clk 0:02:59.2]}
5... Qc7 {[%clk 0:03:00.4]} 6. Ndb5 {[%clk 0:02:59]} 6... Qb8 {[%clk 0:02:59.3]}
7. Be3 {[%clk 0:02:59.4]} 7... a6 {[%clk 0:02:57.4]} 8. Bb6 {[%clk 0:02:59.7]}
8... axb5 {[%clk 0:02:57.3]} 9. Nxb5 {[%clk 0:03:00.6]} 9... Bb4+ {[%clk
0:02:57.3]} 10. c3 {[%clk 0:03:01.2]} 10... Ba5 {[%clk 0:02:57.7]} 11. Nc7+
{[%clk 0:03:00.8]} 11... Qxc7 {[%clk 0:02:58]} 12. Bxc7 {[%clk 0:03:01.7]} 12...
Bxc7 {[%clk 0:02:58.1]} 13. Qg4 {[%clk 0:03:00.7]} 13... Kf8 {[%clk 0:02:47.8]}
14. Bb5 {[%clk 0:03:00.5]} 14... Nf6 {[%clk 0:02:45]} 15. Qe2 {[%clk 0:02:59.5]}
15... g6 {[%clk 0:02:27]} 16. a4 {[%clk 0:02:56.9]} 16... b6 {[%clk 0:02:25.2]}
17. O-O {[%clk 0:02:47.4]} 17... Kg7 {[%clk 0:02:23.3]} 18. f4 {[%clk 0:02:39]}
18... Bb7 {[%clk 0:01:54.2]} 19. b4 {[%clk 0:02:22.8]} 19... d5 {[%clk
0:01:35.2]} 20. e5 {[%clk 0:01:57]} 20... Ne4 {[%clk 0:01:30]} 21. Rac1 {[%clk
0:01:49.8]} 21... Ne7 {[%clk 0:01:17.8]} 22. c4 {[%clk 0:01:41.7]} 22... Ra7
{[%clk 0:00:41.6]} 23. cxd5 {[%clk 0:01:29.2]} 23... Bxd5 {[%clk 0:00:41.2]} 24.
Bd3 {[%clk 0:01:26.3]} 24... f5 {[%clk 0:00:30.5]} 25. exf6+ {[%clk 0:01:23.6]}
25... Nxf6 {[%clk 0:00:30.8]} 26. Bc4 {[%clk 0:00:58.8]} 26... Bd6 {[%clk
0:00:19.4]} 27. Bxd5 {[%clk 0:00:52.6]} 27... exd5 {[%clk 0:00:20]} 28. Qe6
{[%clk 0:00:24.6]} 28... Ne4 {[%clk 0:00:18.5]} 29. Rfe1 {[%clk 0:00:19.3]}
29... Bxb4 {[%clk 0:00:18.5]} 30. Rxe4 {[%clk 0:00:17.9]} 30... dxe4 {[%clk
0:00:18.6]} 31. Qxe4 {[%clk 0:00:17.5]} 31... Bc5+ {[%clk 0:00:14]} 32. Kh1
{[%clk 0:00:17.4]} 32... Rd8 {[%clk 0:00:12.4]} 33. Qe5+ {[%clk 0:00:16.4]}
33... Kg8 {[%clk 0:00:12.8]} 34. h4 {[%clk 0:00:16.4]} 34... Rad7 {[%clk
0:00:12.5]} 35. Kh2 {[%clk 0:00:14.5]} 35... Nf5 {[%clk 0:00:08.9]} 36. Qe6+
{[%clk 0:00:14.8]} 36... Kh8 {[%clk 0:00:08.7]} 37. Qf6+ {[%clk 0:00:13.4]}
37... Kg8 {[%clk 0:00:09]} 38. h5 {[%clk 0:00:10.2]} 38... Be3 {[%clk
0:00:07.1]} 39. Rf1 {[%clk 0:00:09]} 39... Rd4 {[%clk 0:00:06.7]} 40. h6 {[%clk
0:00:08.3]} 40... Bxf4+ {[%clk 0:00:05.4]} 41. Kh3 {[%clk 0:00:05.6]} 41... Bd6
{[%clk 0:00:03.9]} 42. Qe6+ {[%clk 0:00:05.1]} 42... Kh8 {[%clk 0:00:03.6]} 43.
Qf6+ {[%clk 0:00:03.1]} 43... Kg8 {[%clk 0:00:04]} 44. Rxf5 {[%clk 0:00:03.2]}
44... Rd3+ {[%clk 0:00:03]} 45. Rf3 {[%clk 0:00:02.5]} 45... Rxf3+ {[%clk
0:00:03]} 46. gxf3 {[%clk 0:00:03.4]} 46... Rd7 {[%clk 0:00:02.4]} 47. Qe6+
{[%clk 0:00:03.7]} 47... Kf8 {[%clk 0:00:02.5]} 48. Qxd7 {[%clk 0:00:03.1]} 1-0

[Event "*** SCC Grand Prix: Titled Tuesday Blitz"]
[Site "Chess.com"]
[Date "2020.06.02"]
[Round "3"]
[White "swisspower96"]
[Black "Anton_Demchenko"]
[Result "1-0"]
[WhiteElo "2568"]
[BlackElo "2829"]
[TimeControl "180+1"]
[EndTime "10:29:37 PDT"]
[Termination "swisspower96 won by resignation"]

1. d4 {[%clk 0:03:00.9]} 1... Nf6 {[%clk 0:02:57.9]} 2. c4 {[%clk 0:03:01.3]}
2... d6 {[%clk 0:02:58.5]} 3. Nc3 {[%clk 0:03:01.4]} 3... e5 {[%clk 0:02:58.1]}
4. Nf3 {[%clk 0:03:00.9]} 4... Nc6 {[%clk 0:02:58.5]} 5. dxe5 {[%clk 0:02:43.4]}
5... dxe5 {[%clk 0:02:59.4]} 6. Qxd8+ {[%clk 0:02:43.6]} 6... Kxd8 {[%clk
0:03:00.3]} 7. g3 {[%clk 0:02:43.5]} 7... Be6 {[%clk 0:02:57.4]} 8. Ng5 {[%clk
0:02:41.2]} 8... Bxc4 {[%clk 0:02:51.9]} 9. b3 {[%clk 0:02:40.9]} 9... Be6
{[%clk 0:02:47.4]} 10. Nxe6+ {[%clk 0:02:37.1]} 10... fxe6 {[%clk 0:02:48.3]}
11. Bb2 {[%clk 0:02:35.1]} 11... Bd6 {[%clk 0:02:47.4]} 12. Bg2 {[%clk
0:02:28.1]} 12... Ke7 {[%clk 0:02:46.1]} 13. e3 {[%clk 0:02:28.4]} 13... Nb4
{[%clk 0:02:40.7]} 14. Ke2 {[%clk 0:02:26.3]} 14... Nbd5 {[%clk 0:02:36.4]} 15.
Nb5 {[%clk 0:02:18.2]} 15... a6 {[%clk 0:02:35]} 16. Nxd6 {[%clk 0:01:49.2]}
16... cxd6 {[%clk 0:02:35]} 17. Rac1 {[%clk 0:01:49.4]} 17... Rac8 {[%clk
0:02:31.9]} 18. e4 {[%clk 0:01:42.8]} 18... Nb4 {[%clk 0:02:29.6]} 19. a3 {[%clk
0:01:37.5]} 19... Nc6 {[%clk 0:02:28.1]} 20. Kd3 {[%clk 0:01:33]} 20... Rhd8
{[%clk 0:02:18.4]} 21. f4 {[%clk 0:01:29.3]} 21... d5 {[%clk 0:01:47]} 22. fxe5
{[%clk 0:01:23.4]} 22... Nxe4 {[%clk 0:01:45.8]} 23. Rhf1 {[%clk 0:01:10]} 23...
Ng5 {[%clk 0:01:41]} 24. h4 {[%clk 0:00:50.4]} 24... Nf7 {[%clk 0:01:40.8]} 25.
Rce1 {[%clk 0:00:47.4]} 25... Na5 {[%clk 0:01:24.9]} 26. b4 {[%clk 0:00:39.8]}
26... Nc4 {[%clk 0:01:15.9]} 27. Bd4 {[%clk 0:00:39.9]} 27... b6 {[%clk
0:00:53.9]} 28. a4 {[%clk 0:00:35]} 28... Rd7 {[%clk 0:00:36.2]} 29. Rf4 {[%clk
0:00:34.3]} 29... Rb7 {[%clk 0:00:19.1]} 30. Bh3 {[%clk 0:00:30]} 30... Nd8
{[%clk 0:00:18]} 31. Ref1 {[%clk 0:00:22]} 31... Rbc7 {[%clk 0:00:18]} 32. Rg4
{[%clk 0:00:20]} 32... Ke8 {[%clk 0:00:14.4]} 33. Rgf4 {[%clk 0:00:19.9]} 33...
Kd7 {[%clk 0:00:06.9]} 34. Rf8 {[%clk 0:00:18]} 34... Kc6 {[%clk 0:00:07.4]} 35.
Rb1 {[%clk 0:00:13.2]} 35... Kb7 {[%clk 0:00:07.1]} 36. b5 {[%clk 0:00:13.2]}
36... axb5 {[%clk 0:00:07]} 37. axb5 {[%clk 0:00:13.7]} 37... Ra8 {[%clk
0:00:07.7]} 38. Rb3 {[%clk 0:00:13.1]} 38... Na5 {[%clk 0:00:06.9]} 39. Rc3
{[%clk 0:00:11.3]} 39... Rxc3+ {[%clk 0:00:06]} 40. Bxc3 {[%clk 0:00:11.8]}
40... Nc4 {[%clk 0:00:05.6]} 41. Re8 {[%clk 0:00:12.3]} 41... Rc8 {[%clk
0:00:05]} 42. Bxe6 {[%clk 0:00:09.3]} 42... Nxe6 {[%clk 0:00:03.5]} 43. Rxe6
{[%clk 0:00:10.2]} 43... Rc7 {[%clk 0:00:03.3]} 44. Re8 {[%clk 0:00:09.6]} 44...
Na3 {[%clk 0:00:02.2]} 45. e6 {[%clk 0:00:07.2]} 45... Nxb5 {[%clk 0:00:01.7]}
46. Be5 {[%clk 0:00:07.9]} 46... Rc1 {[%clk 0:00:01.9]} 47. e7 {[%clk
0:00:08.2]} 47... Rd1+ {[%clk 0:00:02.1]} 48. Kc2 {[%clk 0:00:08.6]} 48... Re1
{[%clk 0:00:01.9]} 49. Rb8+ {[%clk 0:00:08.9]} 49... Ka6 {[%clk 0:00:02.6]} 50.
e8=Q {[%clk 0:00:09.5]} 50... Nd4+ {[%clk 0:00:02.3]} 51. Bxd4 {[%clk
0:00:08.8]} 51... Rxe8 {[%clk 0:00:02.1]} 52. Rxe8 {[%clk 0:00:09.7]} 1-0

[Event "*** SCC Grand Prix: Titled Tuesday Blitz"]
[Site "Chess.com"]
[Date "2020.06.02"]
[Round "3"]
[White "GMartin_Petrov"]
[Black "Gerodot71"]
[Result "1-0"]
[WhiteElo "2565"]
[BlackElo "2358"]
[TimeControl "180+1"]
[EndTime "10:29:37 PDT"]
[Termination "GMartin_Petrov won by resignation"]

1. e4 {[%clk 0:03:00.9]} 1... e5 {[%clk 0:02:59.7]} 2. Nf3 {[%clk 0:03:00.8]}
2... Nc6 {[%clk 0:02:59.8]} 3. Bc4 {[%clk 0:03:01.3]} 3... Nf6 {[%clk 0:02:59]}
4. Ng5 {[%clk 0:03:00.5]} 4... d5 {[%clk 0:02:58.5]} 5. exd5 {[%clk 0:03:01.4]}
5... Na5 {[%clk 0:02:58.3]} 6. Bb5+ {[%clk 0:03:02]} 6... c6 {[%clk 0:02:58.2]}
7. dxc6 {[%clk 0:03:02.9]} 7... bxc6 {[%clk 0:02:58.4]} 8. Bd3 {[%clk
0:03:03.4]} 8... h6 {[%clk 0:02:51.6]} 9. Ne4 {[%clk 0:03:01.9]} 9... Nxe4
{[%clk 0:02:27.4]} 10. Bxe4 {[%clk 0:03:01.6]} 10... Bc5 {[%clk 0:02:27.7]} 11.
O-O {[%clk 0:02:56.7]} 11... O-O {[%clk 0:02:25.2]} 12. d3 {[%clk 0:02:56.9]}
12... f5 {[%clk 0:02:17.5]} 13. Bf3 {[%clk 0:02:56.7]} 13... Qf6 {[%clk
0:02:12.8]} 14. c3 {[%clk 0:02:44]} 14... Bb6 {[%clk 0:02:11.1]} 15. Nd2 {[%clk
0:02:39.4]} 15... Ba6 {[%clk 0:02:05.2]} 16. b4 {[%clk 0:02:31]} 16... Nb7
{[%clk 0:02:00.7]} 17. Nc4 {[%clk 0:01:54.9]} 17... Bc7 {[%clk 0:01:55.9]} 18.
Qb3 {[%clk 0:01:48.2]} 18... Kh8 {[%clk 0:01:54.5]} 19. a4 {[%clk 0:01:47.9]}
19... e4 {[%clk 0:01:43.1]} 20. Be2 {[%clk 0:01:35.2]} 20... Rab8 {[%clk
0:01:22.4]} 21. Be3 {[%clk 0:01:31.2]} 21... exd3 {[%clk 0:00:59]} 22. Bxd3
{[%clk 0:01:28.7]} 22... Nd6 {[%clk 0:00:59.5]} 23. Rad1 {[%clk 0:01:23.2]}
23... Ne4 {[%clk 0:00:52.9]} 24. Bd4 {[%clk 0:01:10.7]} 24... Qh4 {[%clk
0:00:49.5]} 25. Ne5 {[%clk 0:01:08.4]} 25... Bxe5 {[%clk 0:00:39.1]} 26. Bxe5
{[%clk 0:01:09.3]} 26... Bxd3 {[%clk 0:00:36.4]} 27. Rxd3 {[%clk 0:01:03.9]}
27... Nc5 {[%clk 0:00:37]} 28. Qc2 {[%clk 0:00:50.1]} 28... Nxd3 {[%clk
0:00:30.5]} 29. Bxb8 {[%clk 0:00:49.7]} 29... Nxb4 {[%clk 0:00:31.1]} 30. cxb4
{[%clk 0:00:46.9]} 30... Rxb8 {[%clk 0:00:31.7]} 31. Qxf5 {[%clk 0:00:44.2]}
31... Qxb4 {[%clk 0:00:30.6]} 32. a5 {[%clk 0:00:40.7]} 32... c5 {[%clk
0:00:30.4]} 33. a6 {[%clk 0:00:37.5]} 33... c4 {[%clk 0:00:30.1]} 34. h3 {[%clk
0:00:35]} 34... Qb6 {[%clk 0:00:26]} 35. Rd1 {[%clk 0:00:25.8]} 35... Qxa6
{[%clk 0:00:23.5]} 36. Rd7 {[%clk 0:00:25.5]} 36... Qf6 {[%clk 0:00:20.5]} 37.
Qe4 {[%clk 0:00:19.7]} 37... Rf8 {[%clk 0:00:19.9]} 38. f3 {[%clk 0:00:18.4]}
38... c3 {[%clk 0:00:20]} 39. Kh1 {[%clk 0:00:16.6]} 39... Qb6 {[%clk
0:00:18.5]} 40. Qe5 {[%clk 0:00:15.5]} 40... Qf6 {[%clk 0:00:18.5]} 41. Qc5
{[%clk 0:00:14.8]} 41... Re8 {[%clk 0:00:15.7]} 42. Qc4 {[%clk 0:00:12]} 42...
Re1+ {[%clk 0:00:15]} 43. Kh2 {[%clk 0:00:12.2]} 43... Re8 {[%clk 0:00:14.7]}
44. Rf7 {[%clk 0:00:09.4]} 44... Qe5+ {[%clk 0:00:14.9]} 45. f4 {[%clk
0:00:09.6]} 45... Qe4 {[%clk 0:00:12.6]} 46. Rf8+ {[%clk 0:00:05.7]} 46... Kh7
{[%clk 0:00:10.9]} 47. Qg8+ {[%clk 0:00:06.2]} 47... Kg6 {[%clk 0:00:11.1]} 48.
Qf7+ {[%clk 0:00:06.8]} 48... Kh7 {[%clk 0:00:10.7]} 49. Rxe8 {[%clk 0:00:06.8]}
49... Qc6 {[%clk 0:00:06.9]} 50. Qg8+ {[%clk 0:00:05.6]} 50... Kg6 {[%clk
0:00:07.4]} 51. Re6+ {[%clk 0:00:06.4]} 1-0

[Event "*** SCC Grand Prix: Titled Tuesday Blitz"]
[Site "Chess.com"]
[Date "2020.06.02"]
[Round "3"]
[White "Artem_Koval"]
[Black "kinga2008"]
[Result "1-0"]
[WhiteElo "2404"]
[BlackElo "2161"]
[TimeControl "180+1"]
[EndTime "10:29:37 PDT"]
[Termination "Artem_Koval won by resignation"]

1. e4 {[%clk 0:03:00.9]} 1... c5 {[%clk 0:02:55.6]} 2. Nf3 {[%clk 0:02:59.1]}
2... d6 {[%clk 0:02:55.3]} 3. d4 {[%clk 0:02:57.8]} 3... cxd4 {[%clk 0:02:55.3]}
4. Nxd4 {[%clk 0:02:58.7]} 4... Nf6 {[%clk 0:02:55.8]} 5. Nc3 {[%clk 0:02:57.7]}
5... g6 {[%clk 0:02:56.4]} 6. f4 {[%clk 0:02:54.9]} 6... Bg7 {[%clk 0:02:56.3]}
7. e5 {[%clk 0:02:55]} 7... Ng4 {[%clk 0:02:43.5]} 8. Bb5+ {[%clk 0:02:53.3]}
8... Kf8 {[%clk 0:02:36.4]} 9. h3 {[%clk 0:02:32.4]} 9... Nh6 {[%clk 0:02:29.8]}
10. O-O {[%clk 0:02:27.7]} 10... Bd7 {[%clk 0:02:28.9]} 11. Be3 {[%clk 0:02:07]}
11... Nc6 {[%clk 0:02:15.4]} 12. Qd2 {[%clk 0:01:10.8]} 12... Nxd4 {[%clk
0:02:06]} 13. Bxd4 {[%clk 0:01:03.8]} 13... Nf5 {[%clk 0:02:03.4]} 14. Bf2
{[%clk 0:00:56]} 14... dxe5 {[%clk 0:02:00.6]} 15. Qxd7 {[%clk 0:00:50.7]} 15...
Qxd7 {[%clk 0:01:48.8]} 16. Bxd7 {[%clk 0:00:51.6]} 16... exf4 {[%clk
0:01:48.4]} 17. Bxf5 {[%clk 0:00:50.5]} 17... gxf5 {[%clk 0:01:49.3]} 18. Bc5
{[%clk 0:00:47.2]} 18... Bh6 {[%clk 0:01:45.8]} 19. Rae1 {[%clk 0:00:39.4]}
19... Re8 {[%clk 0:01:39.1]} 20. Nd5 {[%clk 0:00:37]} 20... Bg5 {[%clk
0:01:38.3]} 21. Re5 {[%clk 0:00:29.1]} 21... Kg7 {[%clk 0:01:33.2]} 22. Rxf5
{[%clk 0:00:23.9]} 22... h6 {[%clk 0:01:31.6]} 23. Nxf4 {[%clk 0:00:19.8]} 23...
e6 {[%clk 0:01:26.9]} 24. Bd4+ {[%clk 0:00:19.5]} 24... Kg8 {[%clk 0:01:22]} 25.
Rxg5+ {[%clk 0:00:14.6]} 25... hxg5 {[%clk 0:01:21.1]} 26. Bxh8 {[%clk
0:00:15.5]} 26... Kxh8 {[%clk 0:01:22]} 27. Nd3 {[%clk 0:00:13]} 27... f5 {[%clk
0:01:18.5]} 28. Ne5 {[%clk 0:00:13]} 28... Kg7 {[%clk 0:01:16.6]} 29. Rd1 {[%clk
0:00:13]} 29... Kf6 {[%clk 0:01:16.2]} 30. Nd7+ {[%clk 0:00:10.2]} 30... Ke7
{[%clk 0:01:15.8]} 31. Nc5 {[%clk 0:00:11.1]} 31... Rc8 {[%clk 0:01:14.6]} 32.
Nxb7 {[%clk 0:00:07.2]} 32... Rxc2 {[%clk 0:01:13.5]} 33. Rb1 {[%clk 0:00:07.3]}
33... e5 {[%clk 0:01:08.7]} 34. Na5 {[%clk 0:00:06.6]} 34... e4 {[%clk
0:01:08.8]} 35. Nb3 {[%clk 0:00:06.8]} 35... Kd6 {[%clk 0:01:08.6]} 36. Nd4
{[%clk 0:00:07]} 36... Rc5 {[%clk 0:01:07.7]} 37. b4 {[%clk 0:00:07.1]} 37...
Rd5 {[%clk 0:01:07.4]} 38. Nb3 {[%clk 0:00:07]} 38... Rb5 {[%clk 0:01:04.9]} 39.
a3 {[%clk 0:00:06.7]} 39... Ke5 {[%clk 0:01:04]} 40. Kf2 {[%clk 0:00:06.6]}
40... f4 {[%clk 0:00:57.7]} 41. Rc1 {[%clk 0:00:07.5]} 41... Rb8 {[%clk
0:00:51.4]} 42. Rc5+ {[%clk 0:00:07.2]} 42... Kf6 {[%clk 0:00:50.9]} 43. Nd4
{[%clk 0:00:07.6]} 43... Rd8 {[%clk 0:00:49.6]} 44. Nc6 {[%clk 0:00:04.6]} 44...
Rd2+ {[%clk 0:00:48.3]} 45. Kg1 {[%clk 0:00:04.9]} 45... f3 {[%clk 0:00:42.2]}
46. gxf3 {[%clk 0:00:04.5]} 46... exf3 {[%clk 0:00:43.1]} 47. Nxa7 {[%clk
0:00:04.6]} 47... Rg2+ {[%clk 0:00:42.8]} 48. Kf1 {[%clk 0:00:04.5]} 48... Ra2
{[%clk 0:00:43.7]} 49. Ra5 {[%clk 0:00:04]} 49... Kg6 {[%clk 0:00:41.6]} 50. b5
{[%clk 0:00:04.1]} 50... Kf5 {[%clk 0:00:34.6]} 51. b6+ {[%clk 0:00:03.9]} 51...
Kf4 {[%clk 0:00:31]} 52. b7 {[%clk 0:00:04.8]} 52... Rb2 {[%clk 0:00:31.4]} 53.
Rb5 {[%clk 0:00:05]} 53... Ra2 {[%clk 0:00:26.4]} 54. b8=Q+ {[%clk 0:00:03.6]}
54... Ke3 {[%clk 0:00:27.3]} 55. Qe5+ {[%clk 0:00:03.2]} 55... Kd3 {[%clk
0:00:27.4]} 56. Rb3+ {[%clk 0:00:03]} 56... Kc4 {[%clk 0:00:27.5]} 57. Qc3+
{[%clk 0:00:03.8]} 1-0

[Event "*** SCC Grand Prix: Titled Tuesday Blitz"]
[Site "Chess.com"]
[Date "2020.06.02"]
[Round "3"]
[White "MYMChessAcademy"]
[Black "aisha_zakirova"]
[Result "1-0"]
[WhiteElo "2457"]
[BlackElo "1970"]
[TimeControl "180+1"]
[EndTime "10:29:38 PDT"]
[Termination "MYMChessAcademy won by resignation"]

1. e4 {[%clk 0:03:00.9]} 1... c5 {[%clk 0:02:59.6]} 2. Ne2 {[%clk 0:03:00.2]}
2... Nf6 {[%clk 0:02:56.6]} 3. Nbc3 {[%clk 0:03:00.4]} 3... d6 {[%clk
0:02:54.4]} 4. g3 {[%clk 0:03:00.4]} 4... Nc6 {[%clk 0:02:54.2]} 5. Bg2 {[%clk
0:03:00.8]} 5... g6 {[%clk 0:02:54.3]} 6. O-O {[%clk 0:03:01.2]} 6... Bg7 {[%clk
0:02:54.6]} 7. d3 {[%clk 0:03:01.8]} 7... O-O {[%clk 0:02:54.8]} 8. h3 {[%clk
0:03:02.4]} 8... Rb8 {[%clk 0:02:52.8]} 9. f4 {[%clk 0:03:02]} 9... Bd7 {[%clk
0:02:48.8]} 10. g4 {[%clk 0:03:01.8]} 10... Ne8 {[%clk 0:02:36]} 11. f5 {[%clk
0:02:59.7]} 11... e6 {[%clk 0:02:33]} 12. Ng3 {[%clk 0:02:49.7]} 12... Nd4
{[%clk 0:02:28.7]} 13. Be3 {[%clk 0:02:36.5]} 13... exf5 {[%clk 0:02:20.9]} 14.
gxf5 {[%clk 0:02:34.9]} 14... Qh4 {[%clk 0:02:18.6]} 15. Bf2 {[%clk 0:01:23]}
15... Qg5 {[%clk 0:02:16.6]} 16. Nd5 {[%clk 0:01:15.1]} 16... Be5 {[%clk
0:02:12.2]} 17. c3 {[%clk 0:01:05]} 17... Nxf5 {[%clk 0:01:14.8]} 18. exf5
{[%clk 0:00:34.6]} 18... Bxg3 {[%clk 0:01:12.5]} 19. Be3 {[%clk 0:00:18.5]}
19... Qh4 {[%clk 0:01:05.6]} 20. Qg4 {[%clk 0:00:15.8]} 20... Qxg4 {[%clk
0:01:01]} 21. hxg4 {[%clk 0:00:16.7]} 21... Be5 {[%clk 0:00:35.7]} 22. d4 {[%clk
0:00:11.8]} 22... cxd4 {[%clk 0:00:34.1]} 23. cxd4 {[%clk 0:00:12.7]} 23... Bg3
{[%clk 0:00:34]} 24. Bh6 {[%clk 0:00:07.8]} 24... Bh4 {[%clk 0:00:22.7]} 25. f6
{[%clk 0:00:05.5]} 25... Bxg4 {[%clk 0:00:18]} 26. Ne7+ {[%clk 0:00:05.4]} 26...
Kh8 {[%clk 0:00:16.9]} 27. Bxf8 {[%clk 0:00:05.7]} 27... Nxf6 {[%clk 0:00:16.4]}
28. Bh6 {[%clk 0:00:05.4]} 28... Nh5 {[%clk 0:00:15.2]} 29. Nd5 {[%clk
0:00:05.2]} 29... Ng3 {[%clk 0:00:14.4]} 30. Rf4 {[%clk 0:00:04.5]} 30... Ne2+
{[%clk 0:00:14.3]} 31. Kh2 {[%clk 0:00:03]} 31... Nxf4 {[%clk 0:00:14.7]} 32.
Bxf4 {[%clk 0:00:03.2]} 32... f5 {[%clk 0:00:13.8]} 33. Bxd6 {[%clk 0:00:02.6]}
33... Rd8 {[%clk 0:00:13.9]} 34. Be5+ {[%clk 0:00:02.7]} 34... Kg8 {[%clk
0:00:14.3]} 35. Rc1 {[%clk 0:00:01.8]} 35... Bf2 {[%clk 0:00:08.7]} 36. Rc7
{[%clk 0:00:01.5]} 36... f4 {[%clk 0:00:07.8]} 37. Rg7+ {[%clk 0:00:01.8]} 37...
Kf8 {[%clk 0:00:07.8]} 38. Rxh7 {[%clk 0:00:02.3]} 38... Bg3+ {[%clk 0:00:07.1]}
39. Kg1 {[%clk 0:00:02.3]} 39... f3 {[%clk 0:00:07.2]} 40. Rh8+ {[%clk
0:00:02.5]} 40... Kf7 {[%clk 0:00:07.4]} 41. Rxd8 {[%clk 0:00:03.4]} 41... fxg2
{[%clk 0:00:07.1]} 42. Kxg2 {[%clk 0:00:04.3]} 42... Bxe5 {[%clk 0:00:06.9]} 43.
dxe5 {[%clk 0:00:05.2]} 43... Be6 {[%clk 0:00:06.7]} 44. Rd6 {[%clk 0:00:04.9]}
44... g5 {[%clk 0:00:05.4]} 45. Ne3 {[%clk 0:00:04.5]} 45... g4 {[%clk
0:00:05.1]} 46. b3 {[%clk 0:00:04.8]} 46... a6 {[%clk 0:00:04.7]} 47. Kg3 {[%clk
0:00:05.2]} 47... Ke7 {[%clk 0:00:04.2]} 48. Nxg4 {[%clk 0:00:05.4]} 1-0

[Event "*** SCC Grand Prix: Titled Tuesday Blitz"]
[Site "Chess.com"]
[Date "2020.06.02"]
[Round "3"]
[White "LileKoridze"]
[Black "Sanyura"]
[Result "0-1"]
[WhiteElo "2309"]
[BlackElo "2521"]
[TimeControl "180+1"]
[EndTime "10:29:39 PDT"]
[Termination "Sanyura won by checkmate"]

1. d4 {[%clk 0:03:00.9]} 1... Nf6 {[%clk 0:02:57.3]} 2. c4 {[%clk 0:03:00.7]}
2... c5 {[%clk 0:02:56.7]} 3. d5 {[%clk 0:02:57.8]} 3... b5 {[%clk 0:02:56.5]}
4. cxb5 {[%clk 0:02:57.4]} 4... a6 {[%clk 0:02:56.9]} 5. bxa6 {[%clk 0:02:57.8]}
5... e6 {[%clk 0:02:57.1]} 6. Nc3 {[%clk 0:02:52.7]} 6... exd5 {[%clk
0:02:56.9]} 7. Nxd5 {[%clk 0:02:52.7]} 7... Be7 {[%clk 0:02:57]} 8. g3 {[%clk
0:02:34.1]} 8... O-O {[%clk 0:02:50.4]} 9. Bg2 {[%clk 0:02:29.1]} 9... Rxa6
{[%clk 0:02:47]} 10. Nf3 {[%clk 0:02:11.8]} 10... Nxd5 {[%clk 0:02:33.7]} 11.
Qxd5 {[%clk 0:02:11.4]} 11... Nc6 {[%clk 0:02:27.6]} 12. O-O {[%clk 0:02:07.7]}
12... Nb4 {[%clk 0:02:27.5]} 13. Qd1 {[%clk 0:02:02.7]} 13... Rd6 {[%clk
0:02:26.2]} 14. Qb3 {[%clk 0:02:00.4]} 14... Ba6 {[%clk 0:02:23.2]} 15. a3
{[%clk 0:01:53.8]} 15... Nc6 {[%clk 0:02:15.9]} 16. Bf4 {[%clk 0:01:52.8]} 16...
Re6 {[%clk 0:02:14.8]} 17. Rfe1 {[%clk 0:01:27.2]} 17... d5 {[%clk 0:02:06.4]}
18. Qc2 {[%clk 0:01:18]} 18... d4 {[%clk 0:02:01.4]} 19. Nd2 {[%clk 0:01:07.5]}
19... d3 {[%clk 0:00:36]} 20. exd3 {[%clk 0:01:04.2]} 20... Nd4 {[%clk
0:00:35.9]} 21. Qd1 {[%clk 0:00:55.8]} 21... Bxd3 {[%clk 0:00:34]} 22. Rxe6
{[%clk 0:00:55.9]} 22... fxe6 {[%clk 0:00:33.8]} 23. Be3 {[%clk 0:00:44.7]}
23... Nc2 {[%clk 0:00:25.4]} 24. Rc1 {[%clk 0:00:43.3]} 24... Nxe3 {[%clk
0:00:21.7]} 25. fxe3 {[%clk 0:00:43.5]} 25... Bg5 {[%clk 0:00:22.3]} 26. Qe1
{[%clk 0:00:34.2]} 26... Qb6 {[%clk 0:00:19.1]} 27. Nf3 {[%clk 0:00:27.7]} 27...
Bf6 {[%clk 0:00:15.7]} 28. b4 {[%clk 0:00:25.2]} 28... c4 {[%clk 0:00:13.8]} 29.
Kh1 {[%clk 0:00:20.3]} 29... e5 {[%clk 0:00:12.4]} 30. Nd2 {[%clk 0:00:19.3]}
30... Qe6 {[%clk 0:00:06.7]} 31. Bf1 {[%clk 0:00:15.4]} 31... e4 {[%clk
0:00:06.6]} 32. Bxd3 {[%clk 0:00:13.6]} 32... cxd3 {[%clk 0:00:02.3]} 33. Qd1
{[%clk 0:00:12.1]} 33... Bg5 {[%clk 0:00:02.4]} 34. Rc4 {[%clk 0:00:06.7]} 34...
Bxe3 {[%clk 0:00:01.5]} 35. Rxe4 {[%clk 0:00:06.7]} 35... Qd5 {[%clk 0:00:01.9]}
36. Qb3 {[%clk 0:00:05.9]} 36... Rf1+ {[%clk 0:00:01.1]} 37. Kg2 {[%clk
0:00:05.7]} 37... Rf2+ {[%clk 0:00:01.6]} 38. Kh3 {[%clk 0:00:06.1]} 38... Qxb3
{[%clk 0:00:01.6]} 39. Nxb3 {[%clk 0:00:06.2]} 39... Bb6 {[%clk 0:00:02.3]} 40.
Re8+ {[%clk 0:00:05.5]} 40... Kf7 {[%clk 0:00:02.7]} 41. Rb8 {[%clk 0:00:05.8]}
41... Be3 {[%clk 0:00:01.4]} 42. Rd8 {[%clk 0:00:05.7]} 42... d2 {[%clk
0:00:01.9]} 43. Rd3 {[%clk 0:00:05.7]} 43... Bb6 {[%clk 0:00:01.4]} 44. Rxd2
{[%clk 0:00:05.8]} 44... Rf3 {[%clk 0:00:01.2]} 45. Nd4 {[%clk 0:00:05.7]} 45...
Rxa3 {[%clk 0:00:01.8]} 46. Nc6 {[%clk 0:00:05.7]} 46... Rb3 {[%clk 0:00:01.8]}
47. Rd7+ {[%clk 0:00:05.6]} 47... Ke6 {[%clk 0:00:01.9]} 48. Rb7 {[%clk
0:00:05.9]} 48... Bg1 {[%clk 0:00:01.9]} 49. b5 {[%clk 0:00:05.7]} 49... Rb2
{[%clk 0:00:01.9]} 50. Nd8+ {[%clk 0:00:06.2]} 50... Kf5 {[%clk 0:00:02.1]} 51.
Rxg7 {[%clk 0:00:06.5]} 51... Rxh2# {[%clk 0:00:01.7]} 0-1